Cogmind - Beta 11.1 @@@ ROGUE MODE // 2022.12.17 @ 17:36:46 Player: Horse Result: Destroyed by G-47 Trooper with Particle Gun Performance ------------- Evolutions (2) 1000 Regions Visited (6) 1200 Robots Destroyed (140) 700 Value Destroyed (3383) 3383 Prototype IDs (11) 220 Alien Tech Used (0) 0 Bonus (791) 791 TOTAL SCORE: 7294 Bonus ------- High Alert Combat Kills 103 Follower Combat Kills 60 Entered Garrisons 200 Used RIF Installer 500 Friendly Fire -72 Cogmind --------- Core Integrity 0/550 Matter 282/300 Energy 123/280 System Corruption 2% Temperature Cool (26) Movement Walking (190) Ox1 Location -8/Materials Parts ------- > --- POWER (1) -------- Cooled Ion Engine > --- PROPULSION (2) --- Carbon-fiber Leg Carbon-fiber Leg > --- UTILITY (6) ------ Seismic Detector Core Shielding Improved Propulsion Shielding Medium Armor Plating Reflective Plating Shield Generator > --- WEAPON (2) ------- Heavy Particle Gun Gauss Rifle > --- INVENTORY (5) ---- Disposable Heat Sink Compact Battery (200) Improved Terrain Scanner Hardlight Generator Heavy Particle Gun Peak State ------------ > --- POWER ------------ Heavy Ion Engine > --- PROPULSION ------- Carbon-fiber Leg Carbon-fiber Leg > --- UTILITY ---------- Advanced Heat Sink Cooling System Compact Battery Utility Shielding Shield Generator Drone Bay > --- WEAPON ----------- Advanced Beam Rifle Improved Heavy Machine Gun > --- INVENTORY -------- Structural Scanner Guided EMP Blaster Datajack Katana [Rating: 38] Favorites ----------- Power Ion Engine Engine Ion Engine Power Core Light Nuclear Core Propulsion Aluminum Leg Leg Aluminum Leg Wheel Wheel Utility Shield Generator Device Shield Generator Storage Compact Battery Processor Targeting Computer Protection Utility Shielding Weapon Particle Gun Energy Gun Particle Gun Ballistic Gun Autogun Launcher Guided EMP Blaster Special Weapon Plasma Cutter Slashing Weapon Katana Special Melee Weapon Datajack Build | -11 -10 -9 -9 -8 -8 -8 ------- Run | Scr Mat Mat Sto Mat Gar Mat Slots Evolved 4 | . . 2 . 2 . . Power . | . . . . . . . Propulsion . | . . . . . . . Utility 4 | . . 2 . 2 . . Weapon . | . . . . . . . Parts Attached 199 | 7 19 53 35 49 9 27 Power 8 | 1 1 . 2 4 . . Engine 7 | 1 1 . 2 3 . . Core 1 | . . . . 1 . . Reactor . | . . . . . . . Propulsion 31 | 2 12 3 2 9 . 3 Treads . | . . . . . . . Leg 23 | . 9 3 2 6 . 3 Wheel 8 | 2 3 . . 3 . . Hover . | . . . . . . . Flight . | . . . . . . . Utility 99 | 2 3 36 11 16 9 22 Device 57 | 2 2 21 6 8 5 13 Storage 3 | . . . . 1 . 2 Processor 4 | . . 1 . 2 . 1 Hackware . | . . . . . . . Protection 35 | . 1 14 5 5 4 6 Artifact . | . . . . . . . Weapon 61 | 2 3 14 20 20 . 2 Energy Gun 16 | . 1 3 7 4 . 1 Energy Cannon . | . . . . . . . Ballistic Gun 16 | 2 1 5 2 5 . 1 Ballistic Cannon . | . . . . . . . Launcher 17 | . 1 6 5 5 . . Special Weapon 3 | . . . . 3 . . Impact Weapon . | . . . . . . . Slashing Weapon 3 | . . . . 3 . . Piercing Weapon . | . . . . . . . Special Melee Weapon 6 | . . . 6 . . . Unidentified Prototypes 5 | . . 1 3 1 . . Parts Lost 22 | . 2 1 4 13 2 . Power 3 | . 1 . 1 1 . . Propulsion 4 | . 1 . . 3 . . Utility 11 | . . 1 3 5 2 . Weapon 4 | . . . . 4 . . Highest Loss Streak 11 | . 2 1 1 11 2 . To Critical Strikes . | . . . . . . . Average Slot Usage (%) 95 | . 97 98 95 88 97 99 Engine 10 | . 12 11 10 7 9 9 Leg 17 | . 19 22 21 10 . 18 Wheel 2 | . 7 . . 5 18 . Device 28 | . 27 29 30 28 23 22 Storage 1 | . . . . 5 . 4 Processor 2 | . . 4 . 3 7 5 Protection 11 | . . 8 11 11 21 20 Energy Gun 7 | . . 10 6 5 18 9 Ballistic Gun 9 | . 25 10 9 6 . 9 Launcher 1 | . 1 1 1 1 . . Naked Turns . | . . . . . . . Heaviest Build 31 | 11 12 23 29 31 30 31 Greatest Support 30 | 20 26 23 28 30 20 30 Greatest Overweight (x) 3 | . . 1 1 3 1 1 Average Overweight (x) . | . . . . . 1 . Largest Inventory Capacity 5 | 5 5 5 5 5 5 5 Average Capacity 5 | 5 5 5 5 5 5 5 Most Carried 5 | 5 5 5 5 5 5 5 Average Carried 4 | 3 4 4 4 4 4 4 Final Capacity 5 | 5 5 5 5 5 5 5 Final Carried 5 | 5 5 5 5 5 5 5 Class Distribution -------------------- 67% | Mutant 32% | Scavenger-Mutant Dominant Class ---------------- Mutant | -10/Materials Scavenger-Mutant | -9/Materials Mutant | -9/Storage Mutant | -8/Materials Scavenger-Mutant | -8/Garrison Mutant | -8/Materials Resources | -11 -10 -9 -9 -8 -8 -8 ----------- Run | Scr Mat Mat Sto Mat Gar Mat Matter Collected 3711 | 121 511 857 852 854 140 376 Remotely . | . . . . . . . Salvage Created 4688 | 29 532 946 1036 1520 203 422 Parts 276 | 2 30 68 62 71 19 24 Haulers Intercepted 12 | . 2 2 4 3 . 1 Recyclers Shooed 2 | . . . . . . 2 Parts Field Recycled . | . . . . . . . Retrieved Matter . | . . . . . . . Parts Self-Destructed . | . . . . . . . Prevented . | . . . . . . . Kills | -11 -10 -9 -9 -8 -8 -8 ------- Run | Scr Mat Mat Sto Mat Gar Mat Combat Hostiles Destroyed 96 | . 7 23 22 27 11 6 Melee 2 | . . . . 2 . . Guns 80 | . 7 17 20 19 11 6 AOE 12 | . . 6 2 4 . . Classes Destroyed 14 | 1 5 4 3 1 . . Worker 10 | . . 1 6 3 . . Builder 3 | . . 1 2 . . . Tunneler 3 | 1 . 1 . 1 . . Hauler 12 | . 2 2 4 3 . 1 Recycler 4 | . 1 . . 2 . 1 Operator 3 | . 1 1 . 1 . . Watcher 9 | . 3 3 1 1 . 1 Swarmer 34 | . . 10 7 6 9 2 Grunt 35 | . 7 6 7 14 . 1 Brawler 2 | . . . 1 1 . . Duelist 2 | . . . 1 . . 1 Protector 1 | . . . 1 . . . Sentry 19 | . . 7 5 5 . 2 Hunter 3 | . . . . 1 2 . Best Kill Streak 7 | 1 4 6 7 4 4 3 Combat Bots Only 6 | . 3 6 6 4 4 2 Max Kills in Single Turn 4 | 1 2 4 3 2 2 1 Gunslinging 1 | . 1 . 1 . 1 . Exploded 3 | . . 3 1 2 . . Melee 1 | . . . . 1 . . Uniques/NPCs Destroyed . | . . . . . . . Combat | -11 -10 -9 -9 -8 -8 -8 -------- Run | Scr Mat Mat Sto Mat Gar Mat Damage Taken 4229 | . 540 580 483 2046 363 217 Core 762 | . 99 53 59 462 54 35 Absorbed by Shields 889 | . . 175 176 325 124 89 Redirected to Shielding 223 | . 3 32 15 153 9 11 Regen/Repaired (Parts) 418 | . . 25 127 169 . 97 Core Remaining (%) 77 | 100 60 . 72 . . . Volleys Fired 409 | 6 41 90 75 134 32 31 Largest 2 | 2 2 2 2 2 2 2 Hottest 110 | 40 85 88 88 76 110 83 Shots Fired 685 | 12 81 155 137 185 54 61 Gun 648 | 12 79 147 128 167 54 61 Cannon . | . . . . . . . Launcher 35 | . 2 8 9 16 . . Special 2 | . . . . 2 . . Kinetic 377 | 12 78 77 66 113 . 31 Thermal 273 | . 1 70 62 56 54 30 Explosive 15 | . 2 8 5 . . . Electromagnetic 20 | . . . 4 16 . . Robot Hit Streak 17 | 2 8 16 14 17 5 7 Robot Miss Streak 6 | 5 4 6 6 3 4 3 Penetration Max . | . . . . . . . Secondary Targets 10 | . 2 1 3 2 2 . Max Gunslinging Chain 1 | . 1 1 1 1 1 . Shots Hit Robots 449 | 4 53 99 90 133 28 42 Core Hits 204 | 1 23 45 45 62 14 14 Critical Kills 3 | . . . 1 2 . . Critical Parts Destroyed 3 | 1 . . 1 1 . . Critical Strikes 22 | 1 . 4 6 6 4 1 Burn 15 | . . 4 4 2 4 1 Destroy 6 | 1 . . 2 3 . . Sever 1 | . . . . 1 . . Melee Attacks 14 | . . . 4 10 . . Impact . | . . . . . . . Slashing 9 | . . . . 9 . . Piercing . | . . . . . . . Sneak Attacks 5 | . . . 3 2 . . Combat Hostiles . | . . . . . . . Follow-up Attacks . | . . . . . . . Damage Inflicted 9539 | 45 703 2099 1994 3207 660 831 Guns 7604 | 45 669 1601 1452 2346 660 831 Cannons . | . . . . . . . Explosions 1684 | . 34 498 542 610 . . Melee 241 | . . . . 241 . . Ramming . | . . . . . . . Kinetic 4298 | 45 669 852 682 1609 . 441 Thermal 3466 | . . 749 802 865 660 390 Explosive 916 | . 34 498 384 . . . Electromagnetic 618 | . . . 126 492 . . Impact . | . . . . . . . Slashing 241 | . . . . 241 . . Piercing . | . . . . . . . Highest Corruption 2 | . 1 . . 2 2 2 Average Corruption 1 | . 1 . . 2 2 2 Corruption Purged . | . . . . . . . Corruption Blocked . | . . . . . . . Effects 16 | . 2 . . 4 6 4 Message Errors 6 | . 2 . . 1 2 1 Heat Flow Errors 6 | . . . . 1 4 1 Data Loss (minor) 2 | . . . . 1 . 1 Data Loss (major) 1 | . . . . . . 1 Misfires 1 | . . . . 1 . . Overload Shots . | . . . . . . . Overflow Damage 75 | . 1 19 14 41 . . Projectiles . | . . . . . . . Explosions 75 | . 1 19 14 41 . . Melee . | . . . . . . . Knockbacks . | . . . . . . . Impact . | . . . . . . . Kinetic . | . . . . . . . Secondary . | . . . . . . . Self-Inflicted Damage 186 | . 62 37 32 55 . . Shots 8 | . 2 1 2 3 . . Rammed . | . . . . . . . Targets Rammed . | . . . . . . . Kicked . | . . . . . . . Crushed . | . . . . . . . Highest Temperature 377 | . 24 338 214 184 377 243 Average Temperature 78 | . 8 87 29 24 150 47 Received Heat Transfer 1463 | . 147 185 142 903 . 86 Effects 4 | . . 1 . . 3 . Shutdowns 1 | . . . . . 1 . Energy Bleed 1 | . . 1 . . . . Interference 2 | . . . . . 2 . Siege Activations . | . . . . . . . Robots Corrupted 2 | . . . . 2 . . Combat Hostiles 2 | . . . . 2 . . Parts Fried 4 | . . . . 4 . . Impact Corruptions . | . . . . . . . Robots Melted . | . . . . . . . Combat Hostiles . | . . . . . . . Parts Melted 22 | . . 4 2 6 7 3 Heat Transferred 8012 | . . 2035 2160 1617 1386 814 Parts Sabotaged . | . . . . . . . Parts Stolen . | . . . . . . . Parts Stripped . | . . . . . . . Power Chain Reactions 2 | . . . 1 1 . . Missiles Intercepted . | . . . . . . . Alert | -11 -10 -9 -9 -8 -8 -8 ------- Run | Scr Mat Mat Sto Mat Gar Mat Peak Influence 612 | 5 293 470 421 477 612 524 Initial 298 | . 3 . . 145 222 298 Average 250 | 1 108 171 260 308 426 372 Maximum Alert Level 2 | . 1 2 2 2 2 2 Low Security (%) 33 | 100 75 68 15 19 . . Level 1 55 | . 24 30 84 55 48 74 Level 2 10 | . . 1 . 25 51 25 Level 3 . | . . . . . . . Level 4 . | . . . . . . . Level 5 . | . . . . . . . High Security . | . . . . . . . Max Security . | . . . . . . . Squads Dispatched 14 | . 4 2 4 4 . . Investigation 6 | . 3 1 . 2 . . Extermination . | . . . . . . . Reinforcement 6 | . 1 1 2 2 . . Assault 2 | . . . 2 . . . Garrison . | . . . . . . . Intercept . | . . . . . . . Searches Triggered . | . . . . . . . Construction Impeded . | . . . . . . . Haulers Reinforced . | . . . . . . . Active Scanning Responses . | . . . . . . . Cargo Convoy Interrupts . | . . . . . . . Stealth | -11 -10 -9 -9 -8 -8 -8 --------- Run | Scr Mat Mat Sto Mat Gar Mat Distress Signals 10 | . . 3 1 5 . 1 Communications Jammed . | . . . . . . . Distress Signals . | . . . . . . . Times Spotted 166 | . 16 40 33 51 12 14 Peak Tracking Total 8 | . 4 4 5 8 5 5 Tactical Retreats 14 | . 1 3 4 3 2 1 Traps | -11 -10 -9 -9 -8 -8 -8 ------- Run | Scr Mat Mat Sto Mat Gar Mat Traps Triggered 6 | . 2 1 . 2 1 . Indirectly . | . . . . . . . Trap Hack Attempts 125 | . . . 125 . . . Triggered . | . . . . . . . Disarmed . | . . . . . . . Reprogrammed 11 | . . . 11 . . . Reused 2 | . . . 2 . . . Traps Extracted . | . . . . . . . Installed . | . . . . . . . Triggered 2 | . . . 2 . . . Machines | -11 -10 -9 -9 -8 -8 -8 ---------- Run | Scr Mat Mat Sto Mat Gar Mat Machines Disabled 9 | . 1 2 1 4 . 1 Max in Single Turn 1 | . 1 1 1 1 . 1 Machines Sabotaged . | . . . . . . . Garrisons Compromised . | . . . . . . . Overloaded Fab Kills . | . . . . . . . Hacking | -11 -10 -9 -9 -8 -8 -8 --------- Run | Scr Mat Mat Sto Mat Gar Mat Machines Accessed 44 | . 7 13 10 13 . 1 Terminals 29 | . 6 9 7 7 . . Fabricators . | . . . . . . . Repair Stations 6 | . . 1 2 2 . 1 Recycling Units 5 | . 1 2 1 1 . . Scanalyzers 3 | . . 1 . 2 . . Garrison Access 1 | . . . . 1 . . Total Hacks 151 | . 23 52 29 44 . 3 Successful 87 | . 10 29 17 29 . 2 Failed 62 | . 12 22 12 15 . 1 Catastrophic 5 | . 1 1 2 1 . . Database Lockouts 2 | . 1 1 . . . . Manual 73 | . 19 26 8 20 . . Terminals 87 | . 15 41 12 19 . . Fabricators . | . . . . . . . Repair Stations 22 | . . 2 9 8 . 3 Recycling Units 29 | . 8 6 8 7 . . Scanalyzers 12 | . . 3 . 9 . . Garrison Access 1 | . . . . 1 . . Terminal Hacks 26 | . 3 15 4 4 . . Robot Schematic 1 | . . 1 . . . . Robot Analysis 7 | . 1 4 . 2 . . Prototype ID Bank 3 | . 1 2 . . . . Open Door 4 | . . . 4 . . . Branch Access Points 1 | . . 1 . . . . Terminal Index 1 | . . 1 . . . . Alert Level 1 | . . 1 . . . . Unreport Threat 7 | . 1 4 . 2 . . Locate Traps 1 | . . 1 . . . . Fabricator Hacks . | . . . . . . . Repair Station Hacks 18 | . . 2 7 7 . 2 Scan Component 10 | . . 1 4 4 . 1 Repair 8 | . . 1 3 3 . 1 Recycling Unit Hacks 6 | . 1 2 1 2 . . Retrieve Components 6 | . 1 2 1 2 . . Scanalyzer 11 | . . 2 . 9 . . Insert Component 5 | . . 1 . 4 . . Analyze 6 | . . 1 . 5 . . Garrison Access Hacks 1 | . . . . 1 . . Unlock Access 1 | . . . . 1 . . Unauthorized Hacks 25 | . 6 8 5 6 . . Terminals 12 | . 2 6 1 3 . . Track 1 | . . 1 . . . . Assimilate 1 | . . 1 . . . . Botnet 9 | . 2 3 1 3 . . Operators 1 | . . 1 . . . . Fabricators . | . . . . . . . Repair Stations . | . . . . . . . Recycling Units 12 | . 4 1 4 3 . . Monitor 3 | . 1 . 1 1 . . Reject 4 | . 1 1 1 1 . . Recyclers 2 | . 1 . 1 . . . Mask 3 | . 1 . 1 1 . . Scanalyzers 1 | . . 1 . . . . Extract 1 | . . 1 . . . . Garrison Access . | . . . . . . . Data Cores Recovered 2 | . 1 1 . . . . Used 2 | . 1 1 . . . . Hacking Detections 34 | . 6 12 6 10 . . Full Trace Events 9 | . 3 2 2 2 . . Feedback Events 1 | . 1 . . . . . Corruption 1 | . 1 . . . . . Feedback Blocked . | . . . . . . . Robot Schematics Acquired 1 | . . 1 . . . . Robots Built . | . . . . . . . Authchips . | . . . . . . . Time . | . . . . . . . Total Robot Build Rating . | . . . . . . . Part Schematics Acquired 7 | . . 3 . 4 . . Parts Built . | . . . . . . . Authchips . | . . . . . . . Time . | . . . . . . . Total Part Build Rating . | . . . . . . . Parts Repaired 8 | . . 1 3 3 . 1 Time 277 | . . 32 102 111 . 32 Parts Recycled . | . . . . . . . Recycled Matter . | . . . . . . . Retrieved Matter . | . . . . . . . Retrieved Components 40 | . 9 11 10 10 . . Parts Scanalyzed 5 | . . 1 . 4 . . Part Schematics Acquired 5 | . . 1 . 4 . . Parts Damaged . | . . . . . . . Bothacking | -11 -10 -9 -9 -8 -8 -8 ------------ Run | Scr Mat Mat Sto Mat Gar Mat Used RIF Installer 1 | . . . . . 1 . Robots Hacked 4 | . . . 3 1 . . Non-combat 4 | . . . 3 1 . . Combat . | . . . . . . . Robot Hacks Applied 4 | . . . 3 1 . . parse_system 1 | . . . 1 . . . no_distress 2 | . . . 1 1 . . find_recycling 1 | . . . 1 . . . Relay Couplers Released . | . . . . . . . Fabnet Peak Effective % . | . . . . . . . Robots Rewired . | . . . . . . . Allies Hacked . | . . . . . . . Hacks Repelled . | . . . . . . . Allies | -11 -10 -9 -9 -8 -8 -8 -------- Run | Scr Mat Mat Sto Mat Gar Mat Total Allies 3 | . . 1 2 . . . Largest Group 3 | . . 1 3 . . . Highest-Rated Group 72 | . . 10 72 . . . Highest-Rated Ally 31 | . . 10 31 . . . Total Orders 72 | . . 2 48 22 . . STAY 18 | . . 1 14 3 . . ROAM 1 | . . . . 1 . . FOLLOW 9 | . . 1 6 2 . . EXPLORE 24 | . . . 15 9 . . RETURN 20 | . . . 13 7 . . Ally Attacks 35 | . . . 35 . . . Total Damage 466 | . . . 466 . . . Kills 2 | . . . 2 . . . Allies Corrupted 1 | . . . . 1 . . Allies Melted . | . . . . . . . Intel | -11 -10 -9 -9 -8 -8 -8 ------- Run | Scr Mat Mat Sto Mat Gar Mat Robot Analysis Total 7 | . 1 4 . 2 . . Derelict Logs Recovered . | . . . . . . . Drone Launches 30 | . . . 19 11 . . Drone Recoveries 24 | . . . 15 9 . . Exploration | -11 -10 -9 -9 -8 -8 -8 ------------- Run | Scr Mat Mat Sto Mat Gar Mat Turns Passed 6815 | 66 542 1795 1993 1595 418 406 Spaces Moved 3594 | 39 339 1045 836 937 231 167 Core 70 | 1 . . . 69 . . Treads . | . . . . . . . Legs 2753 | . 239 1045 836 466 . 167 Wheels 771 | 38 100 . . 402 231 . Hover . | . . . . . . . Flight . | . . . . . . . Fastest Speed 50 | 50 80 120 120 50 95 120 Average Speed 116 | 79 108 125 130 102 95 122 Slowest Speed 260 | 80 120 190 190 260 95 190 Overloaded Moves . | . . . . . . . Propulsion Burnouts . | . . . . . . . Robots Hopped . | . . . . . . . Cave-ins Triggered . | . . . . . . . Exploration Rate (%) 56 | 3 64 93 95 74 45 18 Regions Visited 6 Branch Regions 1 Pre-discovered Areas . | . . . . . . . Known Exits Taken 2 | . . 1 . 1 . . Unknown Exits Taken 3 | 1 1 . 1 . . . Scrap Searched . | . . . . . . . Spaces Dug 12 | . . 8 . 4 . . Terrain Destroyed 183 | . 12 60 55 56 . . Melee 2 | . . . . 2 . . Projectile 7 | . . . . 7 . . AOE 174 | . 12 60 55 47 . . Terrain Rammed . | . . . . . . . Walls Destroyed . | . . . . . . . Machines Disabled . | . . . . . . . Actions | -11 -10 -9 -9 -8 -8 -8 --------- Run | Scr Mat Mat Sto Mat Gar Mat Total 5543 | 58 437 1375 1605 1391 372 305 Wait 1049 | 2 18 167 507 209 88 58 Move 3588 | 38 338 1044 835 936 230 167 Hop . | . . . . . . . Pick Up 61 | 5 6 7 8 23 3 9 Fast Attach 54 | 7 4 5 8 26 . 4 Attach 30 | . 5 2 6 12 1 4 Detach 9 | . 1 2 1 4 . 1 Swap 115 | . 10 46 21 11 8 19 Drop 79 | . 14 12 13 26 2 12 Fire 409 | 6 41 90 75 134 32 31 Melee 14 | . . . 4 10 . . Ram . | . . . . . . . Kick . | . . . . . . . Crush . | . . . . . . . Escape Stasis 8 | . . . . . 8 . Rewire . | . . . . . . . Trap 125 | . . . 125 . . . Miscellaneous 2 | . . . 2 . . . Route ------- -11/Scrapyard -10/Materials (discovered 2 exits: *Mat / [*Min]) -9/Materials (discovered 7 exits: *Mat x3 / *Min x2 / *Sto x2) -9/Storage -8/Materials (discovered 3 exits: *Fac x2 / Gar) -8/Garrison (discovered 2 exits: *Mat x2) -8/Materials History --------- Turn | Location | Event 21 | -11/Scrapyard | Discovered new exit (range 15) 67 | -11/Scrapyard | Entered Materials 118 | -10/Materials | Discovered new exit (range 16) 527 | -10/Materials | Discovered new exit (range 15) 541 | -10/Materials | Central database locked down 609 | -10/Materials | Entered another Materials area 609 | -9/Materials | Evolved 2 slots: Utility x2 704 | -9/Materials | Identified exit to Mines 704 | -9/Materials | Identified exit to Storage 867 | -9/Materials | Discovered new exit (range 15) 881 | -9/Materials | Build established: Scavenger-Mutant 1422 | -9/Materials | Discovered new exit (range 8) 1466 | -9/Materials | Repaired Shield Generator 1665 | -9/Materials | Discovered new exit (range 15) 2105 | -9/Materials | Build established: Mutant 2224 | -9/Materials | Central database locked down 2404 | -9/Materials | Entered Storage 2404 | -9/Storage | Accompanied by 1 ally 2484 | -9/Storage | Met a pair of Derelict thieves 2961 | -9/Storage | Repaired Cooling System 2997 | -9/Storage | Repaired Shield Generator 3037 | -9/Storage | Repaired Carbon-fiber Leg 4371 | -9/Storage | Discovered new exit (range 7) 4397 | -9/Storage | Entered Materials 4397 | -8/Materials | Evolved 2 slots: Utility x2 4662 | -8/Materials | Discovered new exit (range 15) 4723 | -8/Materials | Repaired Broken Carbon-fiber Leg 5184 | -8/Materials | Discovered new exit (range 8) 5245 | -8/Materials | Repaired Shield Generator 5272 | -8/Materials | Repaired Utility Shielding 5426 | -8/Materials | Core integrity fell below 50% 5476 | -8/Materials | Lost 11 parts (3n5u3w) 5631 | -8/Materials | Core integrity fell below 20% 5671 | -8/Materials | Identified exit to Factory 5855 | -8/Materials | Build established: Scavenger-Mutant 5970 | -8/Materials | Identified exit to Garrison 5992 | -8/Materials | Entered Garrison 6064 | -8/Garrison | Triggered checkpoint 6088 | -8/Garrison | Discovered new exit (range 12) 6272 | -8/Garrison | Triggered checkpoint 6387 | -8/Garrison | Discovered new exit (range 15) 6406 | -8/Garrison | Installed Relay Interface Framework 6410 | -8/Garrison | Entered Materials 6489 | -8/Materials | Repaired Med. Armor Plating 6816 | -8/Materials | Destroyed by G-47 Trooper with Particle Gun Last Messages --------------- 06754_ Acquired 10 matter. 06756_ K-01 Serf collects debris. 06764_ System corrupted: Component data lost. 06764_ K-01 Serf collects debris. 06768_ Discarded Targeting Computer. 06769_ Acquired Reflective Plating. 06775_ K-01 Serf collects debris. 06779_ Slug penetrates Wall. 06788_ C-30 ARC bursts open, deploying its payload. 06788_ S-10 Pest unfolds itself. 06789_ Slug penetrates S-10 Pest. 06789_ S-10 Pest destroyed. 06795_ K-01 Serf collects debris. 06798_ R-06 Scavenger collects Flight Unit. 06799_ K-01 Serf collects debris. 06801_ Acquired 80 matter. 06802_ K-01 Serf collects debris. 06802_ R-06 Scavenger collects Flight Unit. 06806_ K-01 Serf collects debris. 06815_ L-31 Rogue destroyed. Map ----- +----------------------------------------------------+ | # !## #???????????????????????????????? | | #!!! ## #???????????????????????????????? | | "" #!! ## #???????#???????????????????????? | | R" #!! ## #?????###########???????????????? | | "" # !## #?????# #???????????????? | | #! ## ####### [ #???????????????? | | +######+######+### # #???????????????? | | # """ """ #???????????????? | | ] + """ """ #???????????????? | | # """ """ #???#???????????? | | +######+########## # """ """ #???????????????? | | # ! #?????## ## #########???????? | | " #= #??????# #########+### ????????? | | " #!! #??????# " #?????### ### """""?#?????? | | " # #??????# ^ ####### # """"" #?????? | | # #??????# ! # """"" #?????? | | ############????? + ^ !=! ! * + """"" #?????? | | ???????????????? ?# ^ !! ==[ !% # """"" #?????? | | ??????????????????########### * # """"" #?????? | | ????????????????? #?????????## ! ## """"" #?????? | | ?????????????????????#########= ## #?????? | | ?????????????????????# /! # ###########?????? | | ?????????????????????#! /! / *"#?#???????#?????? | | ?????????????????????# ! #=%%##### #?????? | | ?????????????????############# k% #?????? | | ?????????? + l /!@%=*= g ##### *#?????? | | ?????????????????##############r##?????????#?????? | | ????????????????#??????????? ? ???#????????????? | | ?????????????????????????????? ""??????????????? | | ???????????????????????????? ? "??#????????????? | | ???????????????????????#?????? ""??#???????????? | | ????????????????????#???????? ????? ????????? | | ?????????????????????????????? "??#????????????? | | ????????????????????????????? "???????????????? | | ?????????????????????????????? "???????????????? | | ??????????????????????????????! ???????????????? | | ???????????????????????????#??####???????????????? | | ?????????????????????????????? ? ????????????????? | | ??????????????????????????????? ?????????????????? | | ?????????????????????????????????????????????????? | | ?????????????????????????????????????????????????? | | ?????????????????????????????????????????????????? | | ?????????????????????????????????????????????????? | | ?????????????????????????????????????????????????? | | ?????????????????????????????????????????????????? | | ?????????????????????????????????????????????????? | | ?????????????????????????????????????????????????? | | ?????????????????????????????????????????????????? | | ?????????????????????????????????????????????????? | | ?????????????????????????????????????????????????? | +----------------------------------------------------+ Best States ------------- Heat Dissipation 72 Coolant Potential 50 Energy Generation 23 Energy Capacity 480 Matter Stores 300 Matter Capacity 300 Sight Range 16 Terrain Scan Range 16 Terrain Scan Density 10 Armor Coverage 375 Resistance: TH 10 Core Shielding 20 Propulsion Shielding 66 Utility Shielding 33 Weapon Shielding 33 Evasion (%) 55 Targeting Accuracy 5 Particle Charging 15 Salvage Targeting 1 Item Schematics ----------------- Med. Armor Plating | -9/Materials | Scanalyzed Sensor Array | -9/Materials | Extracted Lgt. Armor Plating | -9/Materials | Extracted Drone Bay | -8/Materials | Scanalyzed Gui. EMP Blaster | -8/Materials | Scanalyzed Carbon-fiber Leg | -8/Materials | Scanalyzed Reaction Control System | -8/Materials | Scanalyzed Robot Schematics ------------------ M-13 Machinist | -9/Materials | Hacked Fabricated ------------ Nothing Alien Tech Used ----------------- None Achievements -------------- None Challenges ------------ None Game ------ Seed ColdBattleCleaver Manual? 0 Play Time 01:56:56 Cumulative 1017.4 hours Start 2022.12.17 @ 14:37:45 End 2022.12.17 @ 17:36:46 Sessions 1 Manual Loads 0 Difficulty Rogue Special Mode None Game No. 416 Rogue 416 Adventurer 0 Explorer 0 Win Type - Total 13 Types 12/0/1/0/0/0/0/0/0 Lore% 73 Gallery% 83 Achievement% 70 Wizard Run 0 Options --------- ASCII 0 Keyboard 1 Movement Numpad Keybinds 0 Fullscreen 2 Font 18/SmallcapsGlow Map View 112x50 Tactical HUD 1 Map Filters NONE Filters NONE Steam 1 RUN: b89f5ad1-8c44-43f8-ba67-65621333a2a1